fUST/lending_fUST_20250411
["ID","MTS","AMOUNT","RATE_DAILY","PERIOD"]
[357687688,1744332680531,-500.0,0.00018082,2]
[357687689,1744332680541,-500.0,0.00018082,2]
[357687690,1744332680551,-1604.56,0.00018082,2]
[357687691,1744332680560,-500.0,0.00018082,2]
[357687692,1744332680570,-1186.97,0.00018082,2]
[357687693,1744332680579,-7810.81,0.00018082,2]
[357687694,1744332680589,-500.0,0.00018082,2]
[357687695,1744332680598,-640.07,0.00018082,2]
[357687696,1744332680607,-500.0,0.00018082,2]
[357687697,1744332680617,-614.86,0.00018082,2]
[357687698,1744332680626,-13554.02,0.00018082,2]
[357687699,1744332680636,-769.63,0.00018082,2]
[357687700,1744332680646,-500.0,0.00018082,2]
[357687701,1744332680659,-5806.94,0.00018082,2]
[357687702,1744332680668,-555.86,0.00018082,2]
[357687703,1744332680678,-320.27503745,0.00018082,2]
[357687704,1744332680687,-1492.5,0.00018082,2]
[357687705,1744332680698,-726.32,0.00018082,2]
[357687706,1744332680707,-659.35,0.00018082,2]
[357687707,1744332680716,-688.0,0.00018082,2]
[357687708,1744332680725,-1067.15,0.00018082,2]
[357687709,1744332680736,-2931.48,0.00018082,2]
[357687710,1744332680746,-1735.47,0.00018082,2]
[357687711,1744332680755,-1109.5,0.00018082,2]
[357687712,1744332680765,-711.11,0.00018082,2]
[357687713,1744332680775,-13734.21,0.00018082,2]
[357687714,1744332680785,-2323.29,0.00018082,2]
[357687715,1744332680795,-1042.58,0.00018082,2]
[357687716,1744332680804,-728.17,0.00018082,2]
[357687717,1744332680813,-500.0,0.00018082,2]
[357687718,1744332680823,-569.2,0.00018082,2]
[357687719,1744332680833,-500.0,0.00018082,2]
[357687720,1744332680842,-500.0,0.00018082,2]
[357687721,1744332680851,-4218.44,0.00018082,2]
[357687722,1744332680860,-848.49,0.00018082,2]
[357687723,1744332680870,-2639.23,0.00018082,2]
[357687724,1744332680879,-2518.79,0.00018082,2]
[357687725,1744332680888,-500.0,0.00018082,2]
[357687726,1744332680898,-2840.99,0.00018082,2]
[357687727,1744332680908,-755.35,0.00018082,2]
[357687728,1744332680917,-630.78,0.00018082,2]
[357687729,1744332680926,-500.0,0.00018082,2]
[357687730,1744332680935,-500.0,0.00018082,2]
[357687731,1744332680944,-1220.83,0.00018082,2]
[357687732,1744332680953,-5035.72,0.00018082,2]
[357687733,1744332680963,-3916.52,0.00018082,2]
[357687734,1744332680972,-500.0,0.00018082,2]
[357687735,1744332680982,-500.0,0.00018082,2]
[357687736,1744332680992,-508.34,0.00018082,2]
[357687737,1744332681001,-500.0,0.00018082,2]
[357687738,1744332681011,-1000.19,0.00018082,2]
[357687739,1744332681020,-884.76,0.00018082,2]
[357687740,1744332681030,-500.0,0.00018082,2]
[357687741,1744332681039,-4175.53,0.00018082,2]
[357687742,1744332681048,-1347.73,0.00018082,2]
[357687743,1744332681058,-2772.56,0.00018082,2]
[357687744,1744332681068,-792.4,0.00018082,2]
[357687745,1744332681078,-856.93,0.00018082,2]
[357687746,1744332681087,-740.48,0.00018082,2]
[357687747,1744332681097,-500.0,0.00018082,2]
[357687748,1744332681106,-500.0,0.00018082,2]
[357687749,1744332681118,-781.83,0.00018082,2]
[357687750,1744332681128,-500.0,0.00018082,2]
[357687751,1744332681138,-554.54891458,0.00018082,2]
[357687752,1744332681147,-500.0,0.00018082,2]
[357687753,1744332681157,-601.25,0.00018082,2]
[357687754,1744332681166,-9626.05,0.00018082,2]
[357687755,1744332681175,-1947.04,0.00018082,2]
[357687756,1744332681185,-966.14,0.00018082,2]
[357687757,1744332681194,-500.0,0.00018082,2]
[357687758,1744332681206,-4677.94,0.00018082,2]
[357687759,1744332681215,-500.0,0.00018082,2]
[357687760,1744332681224,-220.72392061,0.00018082,2]
[357687761,1744332681234,-500.0,0.00018082,2]
[357687762,1744332681243,-402.30839247,0.00018082,2]
[357687763,1744332681253,-527.85,0.00018082,2]
[357687764,1744332681262,-500.0,0.00018082,2]
[357687765,1744332681272,-714.13,0.00018082,2]
[357687766,1744332681282,-756.51,0.00018082,2]
[357687767,1744332681292,-808.09,0.00018082,2]
[357687768,1744332681301,-6483.88,0.00018082,2]
[357687769,1744332681311,-6484.18,0.00018082,2]
[357687770,1744332681321,-500.0,0.00018082,2]
[357687771,1744332681330,-615.42,0.00018082,2]
[357687772,1744332681340,-500.0,0.00018082,2]
[357687773,1744332681349,-1945.56,0.00018082,2]
[357687774,1744332681358,-524.93,0.00018082,2]
[357687775,1744332681367,-585.82,0.00018082,2]
[357687776,1744332681376,-1064.33,0.00018082,2]
[357687777,1744332681386,-1433.89,0.00018082,2]
[357687778,1744332681395,-917.83,0.00018082,2]
[357687779,1744332681405,-500.0,0.00018082,2]
[357687780,1744332681415,-668.16,0.00018082,2]
[357687781,1744332681424,-1100.79,0.00018082,2]
[357687782,1744332681434,-500.0,0.00018082,2]
[357687783,1744332681443,-500.0,0.00018082,2]
[357687784,1744332681452,-500.0,0.00018082,2]
[357687785,1744332681461,-540.97,0.00018082,2]
[357687786,1744332681471,-4679.43,0.00018082,2]
[357687787,1744332681480,-947.12,0.00018082,2]
[357687788,1744332681489,-500.0,0.00018082,2]
[357687789,1744332681499,-500.0,0.00018082,2]
[357687790,1744332681508,-1008.44,0.00018082,2]
[357687791,1744332681518,-500.0,0.00018082,2]
[357687792,1744332681529,-4183.52,0.00018082,2]
[357687793,1744332681539,-500.0,0.00018082,2]
[357687794,1744332681548,-1151.7,0.00018082,2]
[357687795,1744332681558,-759.31,0.00018082,2]
[357687796,1744332681567,-332.38352124,0.00018082,2]
[357687797,1744332681577,-500.0,0.00018082,2]
[357687798,1744332681587,-626.77,0.00018082,2]
[357687799,1744332681597,-500.0,0.00018082,2]
[357687800,1744332681606,-942.33,0.00018082,2]
[357687801,1744332681616,-2564.86,0.00018082,2]
[357687802,1744332681626,-500.0,0.00018082,2]
[357687803,1744332681635,-1699.0,0.00018082,2]
[357687804,1744332681645,-731.4,0.00018082,2]
[357687805,1744332681659,-500.0,0.00018082,2]
[357687806,1744332681671,-570.97,0.00018082,2]
[357687807,1744332681680,-754.83,0.00018082,2]
[357687808,1744332681689,-3260.9,0.00018082,2]
[357687809,1744332681698,-500.9,0.00018082,2]
[357687810,1744332681709,-500.0,0.00018082,2]
[357687811,1744332681719,-18184.96,0.00018082,2]
[357687812,1744332681728,-500.0,0.00018082,2]
[357687813,1744332681738,-500.0,0.00018082,2]
[357687814,1744332681748,-506.91,0.00018082,2]
[357687815,1744332681758,-500.0,0.00018082,2]
[357687816,1744332681767,-740.5,0.00018082,2]
[357687817,1744332681778,-500.0,0.00018082,2]
[357687818,1744332681788,-559.11,0.00018082,2]
[357687819,1744332681797,-500.0,0.00018082,2]
[357687820,1744332681806,-1994.39,0.00018082,2]
[357687821,1744332681815,-520.03526504,0.00018082,2]
[357687822,1744332681825,-911.05,0.00018082,2]
[357687823,1744332681835,-6436.24,0.00018082,2]
[357687824,1744332681844,-1272.17,0.00018082,2]
[357687825,1744332681854,-1474.54,0.00018082,2]
[357687826,1744332681863,-1574.76,0.00018082,2]
[357687827,1744332681874,-976.71,0.00018082,2]
[357687828,1744332681886,-650.21,0.00018082,2]
[357687829,1744332681895,-500.0,0.00018082,2]
[357687830,1744332681905,-3050.81,0.00018082,2]
[357687831,1744332681915,-238.19550903,0.00018082,2]
[357687832,1744332681925,-2422.75,0.00018082,2]
[357687833,1744332681935,-524.39,0.00018082,2]
[357687834,1744332681944,-618.62,0.00018082,2]
[357687835,1744332681954,-5298.82,0.00018082,2]
[357687836,1744332681965,-527.61,0.00018082,2]
[357687837,1744332681974,-974.24,0.00018082,2]
[357687838,1744332681984,-2000.0,0.00018116,2]
[357687839,1744332681994,-11630.24417326,0.00018279,2]
[357687840,1744332682003,-3699.75,0.00018356,2]
[357687841,1744332682012,-865.73,0.00018356,2]
[357687842,1744332682021,-1251.82,0.00018356,2]
[357687843,1744332682030,-500.0,0.00018356,2]
[357687844,1744332682039,-500.0,0.00018356,2]
[357687845,1744332682049,-500.0,0.00018356,2]
[357687846,1744332682058,-599.27,0.00018356,2]
[357687847,1744332682068,-570.69,0.00018356,2]
[357687848,1744332682077,-822.09,0.00018356,2]
[357687849,1744332682086,-500.0,0.00018356,2]
[357687850,1744332682096,-500.0,0.00018356,2]
[357687851,1744332682106,-500.0,0.00018356,2]
[357687852,1744332682115,-780.46,0.00018356,2]
[357687853,1744332682124,-911.25,0.00018356,2]
[357687854,1744332682133,-500.0,0.00018356,2]
[357687855,1744332682143,-500.0,0.00018356,2]
[357687856,1744332682152,-500.0,0.00018356,2]
[357687857,1744332682162,-500.0,0.00018356,2]
[357687858,1744332682170,-500.0,0.00018356,2]
[357687859,1744332682179,-500.0,0.00018356,2]
[357687860,1744332682188,-500.0,0.00018356,2]
[357687861,1744332682197,-300.0,0.00018356,2]
[357687862,1744332682207,-500.0,0.00018356,2]
[357687863,1744332682216,-500.0,0.00018356,2]
[357687864,1744332682225,-500.0,0.00018356,2]
[357687865,1744332682234,-500.0,0.00018356,2]
[357687866,1744332682243,-500.0,0.00018356,2]
[357687867,1744332682252,-500.0,0.00018356,2]
[357687868,1744332682261,-500.0,0.00018356,2]
[357687869,1744332682271,-500.0,0.00018356,2]
[357687870,1744332682283,-1232.99,0.00018356,2]
[357687871,1744332682292,-588.16,0.00018356,2]
[357687872,1744332682301,-500.0,0.00018356,2]
[357687873,1744332682311,-500.0,0.00018356,2]
[357687874,1744332682320,-500.0,0.00018356,2]
[357687875,1744332682329,-500.0,0.00018356,2]
[357687876,1744332682339,-500.0,0.00018356,2]
[357687877,1744332682348,-507.17,0.00018356,2]
[357687878,1744332682357,-500.0,0.00018356,2]
[357687879,1744332682366,-1079.66,0.00018356,2]
[357687880,1744332682375,-1430.67,0.00018356,2]
[357687881,1744332682384,-500.0,0.00018356,2]
[357687882,1744332682393,-1119.95,0.00018356,2]
[357687883,1744332682402,-625.16,0.00018356,2]
[357687884,1744332682411,-500.0,0.00018356,2]
[357687885,1744332682422,-500.0,0.00018356,2]
[357687886,1744332682431,-686.77,0.00018356,2]
[357687887,1744332682439,-2680.42,0.00018356,2]
[357687888,1744332682449,-500.0,0.00018356,2]
[357687889,1744332682458,-500.0,0.00018356,2]
[357687890,1744332682467,-500.0,0.00018356,2]
[357687891,1744332682476,-500.0,0.00018356,2]
[357687892,1744332682485,-596.86,0.00018356,2]
[357687893,1744332682494,-500.0,0.00018356,2]
[357687894,1744332682503,-2411.42,0.00018356,2]
[357687895,1744332682512,-500.0,0.00018356,2]
[357687896,1744332682523,-687.7,0.00018356,2]
[357687897,1744332682533,-902.62,0.00018356,2]
[357687898,1744332682542,-500.0,0.00018356,2]
[357687899,1744332682552,-2689.13,0.00018356,2]
[357687900,1744332682563,-500.0,0.00018356,2]
[357687901,1744332682572,-785.7,0.00018356,2]
[357687902,1744332682581,-500.0,0.00018356,2]
[357687903,1744332682590,-500.0,0.00018356,2]
[357687904,1744332682599,-5675.99,0.00018356,2]
[357687905,1744332682608,-500.0,0.00018356,2]
[357687906,1744332682618,-500.0,0.00018356,2]
[357687907,1744332682627,-870.2,0.00018356,2]
[357687908,1744332682636,-308.75027973,0.00018356,2]
[357687909,1744332682645,-500.0,0.00018356,2]
[357687910,1744332682657,-500.0,0.00018356,2]
[357687911,1744332682667,-500.0,0.00018356,2]
[357687912,1744332682676,-597.88,0.00018356,2]
[357687913,1744332682685,-500.0,0.00018356,2]
[357687914,1744332682695,-626.25,0.00018356,2]
[357687915,1744332682703,-500.0,0.00018356,2]
[357687916,1744332682713,-892.18,0.00018356,2]
[357687917,1744332682722,-500.0,0.00018356,2]
[357687918,1744332682731,-500.0,0.00018356,2]
[357687919,1744332682741,-682.01,0.00018356,2]
[357687920,1744332682750,-500.0,0.00018356,2]
[357687921,1744332682759,-500.0,0.00018356,2]
[357687922,1744332682768,-500.0,0.00018356,2]
[357687923,1744332682779,-2060.38,0.00018356,2]
[357687924,1744332682788,-605.05,0.00018356,2]
[357687925,1744332682797,-500.0,0.00018356,2]
[357687926,1744332682806,-500.0,0.00018356,2]
[357687927,1744332682815,-500.0,0.00018356,2]
[357687928,1744332682825,-2354.26,0.00018356,2]
[357687929,1744332682834,-500.0,0.00018356,2]
[357687930,1744332682843,-500.0,0.00018356,2]
[357687931,1744332682852,-622.34,0.00018356,2]
[357687932,1744332682861,-1017.63,0.00018356,2]
[357687933,1744332682870,-454.8979832,0.00018356,2]
[357687934,1744332682879,-938.97,0.00018356,2]
[357687935,1744332682888,-500.0,0.00018356,2]
[357687936,1744332682898,-500.0,0.00018356,2]
[357687937,1744332682907,-658.07,0.00018356,2]
[357687938,1744332682917,-500.0,0.00018356,2]
[357687939,1744332682926,-500.0,0.00018356,2]
[357687940,1744332682935,-381.34058987,0.00018356,2]
[357687941,1744332682946,-1373.8,0.00018356,2]
[357687942,1744332682955,-753.79,0.00018356,2]
[357687943,1744332682965,-1265.29,0.00018356,2]
[357687944,1744332682974,-500.0,0.00018356,2]
[357687945,1744332682983,-820.1,0.00018356,2]
[357687946,1744332682993,-500.0,0.00018356,2]
[357687947,1744332683002,-584.98,0.00018356,2]
[357687948,1744332683011,-249.92756606,0.00018356,2]
[357687949,1744332683021,-1800.19,0.00018356,2]
[357687950,1744332683032,-500.0,0.00018356,2]
[357687951,1744332683042,-508.82,0.00018356,2]
[357687952,1744332683052,-500.0,0.00018356,2]
[357687953,1744332683061,-500.0,0.00018356,2]
[357687954,1744332683071,-500.0,0.00018356,2]
[357687955,1744332683080,-965.93,0.00018356,2]
[357687956,1744332683090,-622.37,0.00018356,2]
[357687957,1744332683100,-500.0,0.00018356,2]
[357687958,1744332683109,-964.69,0.00018356,2]
[357687959,1744332683119,-1069.32,0.00018356,2]
[357687960,1744332683128,-1504.79,0.00018356,2]
[357687961,1744332683138,-626.21,0.00018356,2]
[357687962,1744332683147,-500.0,0.00018356,2]
[357687963,1744332683157,-522.1,0.00018356,2]
[357687964,1744332683166,-500.0,0.00018356,2]
[357687965,1744332683175,-500.0,0.00018356,2]
[357687966,1744332683184,-500.0,0.00018356,2]
[357687967,1744332683193,-500.0,0.00018356,2]
[357687968,1744332683202,-500.0,0.00018356,2]
[357687969,1744332683212,-519.3,0.00018356,2]
[357687970,1744332683221,-1328.83,0.00018356,2]
[357687971,1744332683230,-920.39,0.00018356,2]
[357687972,1744332683240,-1101.36,0.00018356,2]
[357687973,1744332683249,-500.0,0.00018356,2]
[357687974,1744332683259,-818.53,0.00018356,2]
[357687975,1744332683268,-856.67,0.00018356,2]
[357687976,1744332683279,-743.65,0.00018356,2]
[357687977,1744332683289,-1156.1,0.00018356,2]
[357687978,1744332683298,-678.36,0.00018356,2]
[357687979,1744332683308,-1705.48,0.00018356,2]
[357687980,1744332683318,-716.68,0.00018356,2]
[357687981,1744332683327,-500.0,0.00018356,2]
[357687982,1744332683337,-500.0,0.00018356,2]
[357687983,1744332683347,-500.0,0.00018356,2]
[357687984,1744332683357,-1296.89,0.00018356,2]
[357687985,1744332683366,-500.0,0.00018356,2]
[357687986,1744332683376,-790.9,0.00018356,2]
[357687987,1744332683385,-704.94,0.00018356,2]
[357687988,1744332683395,-567.7,0.00018356,2]
[357687989,1744332683405,-500.0,0.00018356,2]
[357687990,1744332683414,-558.42,0.00018356,2]
[357687991,1744332683611,-500.0,0.00018356,2]
[357687992,1744332683621,-1188.07,0.00018356,2]
[357687993,1744332683631,-500.0,0.00018356,2]
[357687994,1744332683641,-714.62,0.00018356,2]
[357687995,1744332683652,-3771.47,0.00018356,2]
[357687996,1744332683669,-570.24,0.00018356,2]
[357687997,1744332683679,-1402.01,0.00018356,2]
[357687998,1744332683688,-500.0,0.00018356,2]
[357687999,1744332683698,-1107.44,0.00018356,2]
[357688000,1744332683708,-726.32,0.00018356,2]
[357688001,1744332683718,-500.0,0.00018356,2]
[357688002,1744332683727,-1438.7,0.00018356,2]
[357688003,1744332683737,-500.0,0.00018356,2]
[357688004,1744332683746,-934.2,0.00018356,2]
[357688005,1744332683756,-870.5,0.00018356,2]
[357688006,1744332683766,-1864.53,0.00018356,2]
[357688007,1744332683775,-537.53,0.00018356,2]
[357688008,1744332683784,-998.15,0.00018356,2]
[357688009,1744332683794,-1383.56,0.00018356,2]
[357688010,1744332683803,-3529.69,0.00018356,2]
[357688011,1744332683813,-274.56702326,0.00018356,2]
[357688012,1744332683822,-500.0,0.00018356,2]
[357688013,1744332683832,-500.0,0.00018356,2]
[357688014,1744332683842,-500.0,0.00018356,2]
[357688015,1744332683852,-3044.77,0.00018356,2]
[357688016,1744332683861,-2146.75,0.00018356,2]
[357688017,1744332683871,-1512.13,0.00018356,2]
[357688018,1744332683880,-14936.72,0.00018356,2]
[357688019,1744332683889,-1335.19,0.00018356,2]
[357688020,1744332683899,-500.0,0.00018356,2]
[357688021,1744332683909,-1204.17,0.00018356,2]
[357688022,1744332683918,-2211.01,0.00018356,2]
[357688023,1744332683927,-1290.13,0.00018356,2]
[357688024,1744332683937,-500.0,0.00018356,2]
[357688025,1744332683946,-782.17,0.00018356,2]
[357688026,1744332683956,-1521.17,0.00018356,2]
[357688027,1744332683965,-500.0,0.00018356,2]
[357688028,1744332683975,-500.0,0.00018356,2]
[357688029,1744332683985,-500.0,0.00018356,2]
[357688030,1744332683994,-3640.91,0.00018356,2]
[357688031,1744332684004,-500.0,0.00018356,2]
[357688032,1744332684014,-500.0,0.00018356,2]
[357688033,1744332684023,-383.00501491,0.00018356,2]
[357688034,1744332684033,-708.03,0.00018356,2]
[357688035,1744332684043,-500.0,0.00018356,2]
[357688036,1744332684052,-500.0,0.00018356,2]
[357688037,1744332684062,-1604.56,0.00018356,2]
[357688038,1744332684072,-500.0,0.00018356,2]
[357688039,1744332684082,-1186.97,0.00018356,2]
[357688040,1744332684091,-7810.81,0.00018356,2]
[357688041,1744332684101,-500.0,0.00018356,2]
[357688042,1744332684111,-640.07,0.00018356,2]
[357688043,1744332684120,-500.0,0.00018356,2]
[357688044,1744332684129,-614.86,0.00018356,2]
[357688045,1744332684139,-13554.02,0.00018356,2]
[357688046,1744332684148,-769.63,0.00018356,2]
[357688047,1744332684158,-500.0,0.00018356,2]
[357688048,1744332684168,-5806.94,0.00018356,2]
[357688049,1744332684177,-555.86,0.00018356,2]
[357688050,1744332684187,-1492.5,0.00018356,2]
[357688051,1744332684196,-726.32,0.00018356,2]
[357688052,1744332684206,-659.35,0.00018356,2]
[357688053,1744332684215,-688.0,0.00018356,2]
[357688054,1744332684225,-1067.15,0.00018356,2]
[357688055,1744332684235,-2931.48,0.00018356,2]
[357688056,1744332684245,-1735.47,0.00018356,2]
[357688057,1744332684255,-1109.5,0.00018356,2]
[357688058,1744332684264,-711.11,0.00018356,2]
[357688059,1744332684275,-13734.21,0.00018356,2]
[357688060,1744332684285,-2323.29,0.00018356,2]
[357688061,1744332684295,-1042.58,0.00018356,2]
[357688062,1744332684305,-728.17,0.00018356,2]
[357688063,1744332684315,-500.0,0.00018356,2]
[357688064,1744332684326,-569.2,0.00018356,2]
[357688065,1744332684336,-500.0,0.00018356,2]
[357688066,1744332684346,-500.0,0.00018356,2]
[357688067,1744332684356,-4218.44,0.00018356,2]
[357688068,1744332684365,-848.49,0.00018356,2]
[357688069,1744332684375,-2639.23,0.00018356,2]
[357688070,1744332684385,-2518.79,0.00018356,2]
[357688071,1744332684395,-2840.99,0.00018356,2]
[357688072,1744332684404,-500.0,0.00018356,2]
[357688073,1744332684414,-755.35,0.00018356,2]
[357688074,1744332684423,-630.78,0.00018356,2]
[357688075,1744332684433,-500.0,0.00018356,2]
[357688076,1744332684443,-500.0,0.00018356,2]
[357688077,1744332684452,-1220.83,0.00018356,2]
[357688078,1744332684463,-5035.72,0.00018356,2]
[357688079,1744332684472,-3916.52,0.00018356,2]
[357688080,1744332684481,-500.0,0.00018356,2]
[357688081,1744332684491,-500.0,0.00018356,2]
[357688082,1744332684501,-508.34,0.00018356,2]
[357688083,1744332684511,-500.0,0.00018356,2]
[357688084,1744332684520,-1000.19,0.00018356,2]
[357688085,1744332684532,-884.76,0.00018356,2]
[357688086,1744332684541,-500.0,0.00018356,2]
[357688087,1744332684551,-4175.53,0.00018356,2]
[357688088,1744332684561,-1347.73,0.00018356,2]
[357688089,1744332684571,-2772.56,0.00018356,2]
[357688090,1744332684580,-792.4,0.00018356,2]
[357688091,1744332684589,-856.93,0.00018356,2]
[357688092,1744332684598,-740.48,0.00018356,2]
[357688093,1744332684608,-500.0,0.00018356,2]
[357688094,1744332684617,-500.0,0.00018356,2]
[357688095,1744332684626,-781.83,0.00018356,2]
[357688096,1744332684636,-500.0,0.00018356,2]
[357688097,1744332684645,-500.0,0.00018356,2]
[357688098,1744332684656,-601.25,0.00018356,2]
[357688099,1744332684667,-9626.05,0.00018356,2]
[357688100,1744332684676,-1947.04,0.00018356,2]
[357688101,1744332684685,-966.14,0.00018356,2]
[357688102,1744332684695,-500.0,0.00018356,2]
[357688103,1744332684705,-4677.94,0.00018356,2]
[357688104,1744332684715,-500.0,0.00018356,2]
[357688105,1744332684724,-500.0,0.00018356,2]
[357688106,1744332684737,-527.85,0.00018356,2]
[357688107,1744332684747,-500.0,0.00018356,2]
[357688108,1744332684757,-714.13,0.00018356,2]
[357688109,1744332684767,-756.51,0.00018356,2]
[357688110,1744332684777,-808.09,0.00018356,2]
[357688111,1744332684787,-6483.88,0.00018356,2]
[357688112,1744332684797,-6484.18,0.00018356,2]
[357688113,1744332684807,-500.0,0.00018356,2]
[357688114,1744332684816,-615.42,0.00018356,2]
[357688115,1744332684826,-500.0,0.00018356,2]
[357688116,1744332684836,-1945.56,0.00018356,2]
[357688117,1744332684845,-524.93,0.00018356,2]
[357688118,1744332684854,-585.82,0.00018356,2]
[357688119,1744332684864,-1064.33,0.00018356,2]
[357688120,1744332684873,-1433.89,0.00018356,2]
[357688121,1744332684882,-917.83,0.00018356,2]
[357688122,1744332684891,-500.0,0.00018356,2]
[357688123,1744332684901,-668.16,0.00018356,2]
[357688124,1744332684911,-1100.79,0.00018356,2]
[357688125,1744332684920,-500.0,0.00018356,2]
[357688126,1744332684929,-500.0,0.00018356,2]
[357688127,1744332684939,-500.0,0.00018356,2]
[357688128,1744332684948,-540.97,0.00018356,2]
[357688129,1744332684958,-4679.43,0.00018356,2]
[357688130,1744332684967,-947.12,0.00018356,2]
[357688131,1744332684976,-500.0,0.00018356,2]
[357688132,1744332684986,-500.0,0.00018356,2]
[357688133,1744332684995,-1008.44,0.00018356,2]
[357688134,1744332685004,-500.0,0.00018356,2]
[357688135,1744332685014,-4183.52,0.00018356,2]
[357688136,1744332685024,-1151.7,0.00018356,2]
[357688137,1744332685034,-759.31,0.00018356,2]
[357688138,1744332685043,-500.0,0.00018356,2]
[357688139,1744332685053,-500.0,0.00018356,2]
[357688140,1744332685063,-626.77,0.00018356,2]
[357688141,1744332685072,-500.0,0.00018356,2]
[357688142,1744332685082,-942.33,0.00018356,2]
[357688143,1744332685091,-2564.86,0.00018356,2]
[357688144,1744332685101,-272.50021113,0.00018356,2]
[357688145,1744332685110,-1699.0,0.00018356,2]
[357688146,1744332685119,-731.4,0.00018356,2]
[357688147,1744332685129,-500.0,0.00018356,2]
[357688148,1744332685138,-570.97,0.00018356,2]
[357688149,1744332685148,-754.83,0.00018356,2]
[357688150,1744332685158,-3260.9,0.00018356,2]
[357688151,1744332685167,-500.9,0.00018356,2]
[357688152,1744332685177,-500.0,0.00018356,2]
[357688153,1744332685186,-18184.96,0.00018356,2]
[357688154,1744332685195,-500.0,0.00018356,2]
[357688155,1744332685205,-500.0,0.00018356,2]
[357688156,1744332685215,-506.91,0.00018356,2]
[357688157,1744332685225,-500.0,0.00018356,2]
[357688158,1744332685234,-740.5,0.00018356,2]
[357688159,1744332685243,-500.0,0.00018356,2]
[357688160,1744332685253,-500.0,0.00018356,2]
[357688161,1744332685262,-559.11,0.00018356,2]
[357688162,1744332685271,-1994.39,0.00018356,2]
[357688163,1744332685281,-6436.24,0.00018356,2]
[357688164,1744332685290,-911.05,0.00018356,2]
[357688165,1744332685299,-1272.17,0.00018356,2]
[357688166,1744332685309,-1574.76,0.00018356,2]
[357688167,1744332685318,-976.71,0.00018356,2]
[357688168,1744332685327,-1474.54,0.00018356,2]
[357688169,1744332685336,-650.21,0.00018356,2]
[357688170,1744332685345,-500.0,0.00018356,2]
[357688171,1744332685354,-3050.81,0.00018356,2]
[357688172,1744332685363,-2422.75,0.00018356,2]
[357688173,1744332685372,-524.39,0.00018356,2]
[357688174,1744332685382,-618.62,0.00018356,2]
[357688175,1744332685391,-5298.82,0.00018356,2]
[357688176,1744332685400,-527.61,0.00018356,2]
[357688177,1744332685409,-974.24,0.00018356,2]
[357688178,1744332685419,-1000.0,0.000185,2]
[357688179,1744332685428,-11630.24417326,0.00018555,2]
[357688180,1744332685438,-1616.49634174,0.00018564,2]
[357688181,1744332685447,-3699.75,0.0001863,2]
[357688182,1744332685456,-865.73,0.0001863,2]
[357688183,1744332685465,-1251.82,0.0001863,2]
[357688184,1744332685474,-526.22246916,0.0001863,2]
[357688185,1744332685483,-466.77869982,0.0001863,2]
[357688186,1744332685493,-500.0,0.0001863,2]
[357688187,1744332685502,-599.27,0.0001863,2]